[Event "*** Titled Tuesday 3|2 Blitz"]
[Site "Chess.com"]
[Date "2015.12.01"]
[Round "3"]
[White "BIG_Pirate"]
[Black "GMharikrishna"]
[Result "0-1"]
[WhiteElo "2271"]
[BlackElo "2525"]
[TimeControl "180+2"]
[EndTime "11:33:52 PST"]
[Termination "GMharikrishna won by resignation"]

1. Nf3 {[%clk 0:02:49.6]} 1... Nf6 {[%clk 0:03:00.6]} 2. c4 {[%clk 0:02:49.6]}
2... b6 {[%clk 0:03:00.2]} 3. g3 {[%clk 0:02:48.5]} 3... Bb7 {[%clk 0:03:00.6]}
4. Bg2 {[%clk 0:02:47]} 4... c5 {[%clk 0:03:00.8]} 5. O-O {[%clk 0:02:45.4]}
5... g6 {[%clk 0:03:01.7]} 6. d4 {[%clk 0:02:45.5]} 6... cxd4 {[%clk 0:03:02.2]}
7. Qxd4 {[%clk 0:02:47.4]} 7... Bg7 {[%clk 0:03:03]} 8. Qh4 {[%clk 0:02:46.7]}
8... h6 {[%clk 0:03:01.2]} 9. Nc3 {[%clk 0:02:18.2]} 9... Nc6 {[%clk 0:02:59.2]}
10. Nd5 {[%clk 0:02:06.6]} 10... Rc8 {[%clk 0:02:48.2]} 11. Rd1 {[%clk 0:01:54]}
11... Na5 {[%clk 0:02:41.1]} 12. Nd2 {[%clk 0:01:41.5]} 12... e6 {[%clk
0:02:12.9]} 13. Nxf6+ {[%clk 0:01:38.5]} 13... Bxf6 {[%clk 0:02:13.4]} 14. Qf4
{[%clk 0:01:35.8]} 14... g5 {[%clk 0:02:08.9]} 15. Qd6 {[%clk 0:01:17.8]} 15...
Bxg2 {[%clk 0:02:03.4]} 16. Kxg2 {[%clk 0:01:18.8]} 16... Nxc4 {[%clk
0:02:04.1]} 17. Nxc4 {[%clk 0:01:19.9]} 17... Rxc4 {[%clk 0:02:06]} 18. Be3
{[%clk 0:00:47.7]} 18... Qc7 {[%clk 0:01:50.1]} 19. Qd3 {[%clk 0:00:38.7]} 19...
Bxb2 {[%clk 0:01:35.4]} 20. Rab1 {[%clk 0:00:38.4]} 20... Bf6 {[%clk 0:01:08.8]}
21. Qa3 {[%clk 0:00:16.7]} 21... Rc3 {[%clk 0:00:50.7]} 22. Qa4 {[%clk
0:00:17.5]} 22... Qc6+ {[%clk 0:00:49.9]} 23. Qxc6 {[%clk 0:00:18.4]} 23... Rxc6
{[%clk 0:00:47.3]} 24. Rb3 {[%clk 0:00:17]} 24... Ke7 {[%clk 0:00:34.7]} 25. Ra3
{[%clk 0:00:18.2]} 25... Rc7 {[%clk 0:00:35.8]} 26. Bd2 {[%clk 0:00:14.4]} 26...
Rhc8 {[%clk 0:00:31.6]} 27. Bb4+ {[%clk 0:00:15.1]} 27... Ke8 {[%clk 0:00:31.2]}
28. Bd6 {[%clk 0:00:16.3]} 28... Rb7 {[%clk 0:00:31.5]} 29. Rd2 {[%clk
0:00:16.8]} 29... Rc6 {[%clk 0:00:30.3]} 30. Ra4 {[%clk 0:00:16.7]} 30... Be7
{[%clk 0:00:29.5]} 31. Be5 {[%clk 0:00:17.1]} 31... f6 {[%clk 0:00:29.9]} 32.
Bd4 {[%clk 0:00:15.5]} 32... d5 {[%clk 0:00:27.2]} 33. Bb2 {[%clk 0:00:13.2]}
33... Rbc7 {[%clk 0:00:27.3]} 34. e4 {[%clk 0:00:13.4]} 34... Rc4 {[%clk
0:00:23.3]} 35. Rxc4 {[%clk 0:00:12.4]} 35... dxc4 {[%clk 0:00:24.3]} 36. Bc3
{[%clk 0:00:13.4]} 36... b5 {[%clk 0:00:24]} 37. Rb2 {[%clk 0:00:14]} 37... Rb7
{[%clk 0:00:21.8]} 38. Ba5 {[%clk 0:00:11.3]} 38... b4 {[%clk 0:00:21.2]} 39.
Kf3 {[%clk 0:00:11.1]} 39... Rb5 {[%clk 0:00:20.2]} 40. Bc7 {[%clk 0:00:10.1]}
40... Kd7 {[%clk 0:00:21.3]} 0-1

[Event "*** Titled Tuesday 3|2 Blitz"]
[Site "Chess.com"]
[Date "2015.12.01"]
[Round "3"]
[White "Rickstereo"]
[Black "Tirantes"]
[Result "1-0"]
[WhiteElo "2218"]
[BlackElo "2213"]
[TimeControl "180+2"]
[EndTime "11:34:12 PST"]
[Termination "Rickstereo won on time"]

1. c4 {[%clk 0:03:01.9]} 1... e5 {[%clk 0:02:59.6]} 2. Nc3 {[%clk 0:03:00.9]}
2... Nf6 {[%clk 0:02:59.4]} 3. Nf3 {[%clk 0:03:01.8]} 3... Nc6 {[%clk
0:02:59.7]} 4. d4 {[%clk 0:03:01.9]} 4... exd4 {[%clk 0:02:58.3]} 5. Nxd4 {[%clk
0:03:02.6]} 5... Bb4 {[%clk 0:02:53.6]} 6. Bg5 {[%clk 0:03:02.8]} 6... h6 {[%clk
0:02:52.2]} 7. Bh4 {[%clk 0:03:01.4]} 7... Bxc3+ {[%clk 0:02:50.1]} 8. bxc3
{[%clk 0:03:01.4]} 8... d6 {[%clk 0:02:50.7]} 9. e3 {[%clk 0:02:43.3]} 9... Ne5
{[%clk 0:02:50.5]} 10. Be2 {[%clk 0:02:41.9]} 10... Ng6 {[%clk 0:02:49.7]} 11.
Bg3 {[%clk 0:02:32.1]} 11... O-O {[%clk 0:02:49.4]} 12. Qc2 {[%clk 0:02:22.3]}
12... Re8 {[%clk 0:02:48.1]} 13. Bf3 {[%clk 0:02:22.2]} 13... Ne5 {[%clk
0:02:43.3]} 14. Be2 {[%clk 0:02:19.3]} 14... Be6 {[%clk 0:02:38.1]} 15. Nxe6
{[%clk 0:02:16.9]} 15... Rxe6 {[%clk 0:02:38.7]} 16. O-O {[%clk 0:02:11.1]}
16... Qd7 {[%clk 0:02:30.8]} 17. Rfd1 {[%clk 0:01:53.7]} 17... Qc6 {[%clk
0:02:23.4]} 18. Rab1 {[%clk 0:01:44.2]} 18... b6 {[%clk 0:02:11.8]} 19. Rd4
{[%clk 0:01:38.1]} 19... Rae8 {[%clk 0:02:09.8]} 20. a4 {[%clk 0:01:32.8]} 20...
a5 {[%clk 0:02:02.8]} 21. Rb5 {[%clk 0:01:28.2]} 21... Qa8 {[%clk 0:01:57]} 22.
h3 {[%clk 0:01:20.6]} 22... Ned7 {[%clk 0:01:48]} 23. Bf3 {[%clk 0:01:17.6]}
23... Qd8 {[%clk 0:01:41.6]} 24. Bc6 {[%clk 0:01:12.9]} 24... R8e7 {[%clk
0:01:38.7]} 25. Bd5 {[%clk 0:01:13.4]} 25... Nxd5 {[%clk 0:01:33.7]} 26. cxd5
{[%clk 0:01:11.4]} 26... Rg6 {[%clk 0:01:29.3]} 27. Bh4 {[%clk 0:00:45.5]} 27...
Nf6 {[%clk 0:01:29.4]} 28. Rf4 {[%clk 0:00:40.1]} 28... Re5 {[%clk 0:01:22.5]}
29. c4 {[%clk 0:00:35.1]} 29... Qe7 {[%clk 0:01:09.6]} 30. Rb3 {[%clk
0:00:31.5]} 30... Rh5 {[%clk 0:01:04.2]} 31. Rd3 {[%clk 0:00:17.8]} 31... Qe5
{[%clk 0:01:03.6]} 32. Rdd4 {[%clk 0:00:14.5]} 32... Nd7 {[%clk 0:00:48.2]} 33.
Rde4 {[%clk 0:00:13.1]} 33... Qa1+ {[%clk 0:00:48.4]} 34. Kh2 {[%clk 0:00:13.9]}
34... Ne5 {[%clk 0:00:41.2]} 35. Bg3 {[%clk 0:00:10.2]} 35... Qf1 {[%clk
0:00:29.8]} 36. Rd4 {[%clk 0:00:05.8]} 36... Kf8 {[%clk 0:00:15.4]} 37. Rd1
{[%clk 0:00:06.8]} 37... Rxh3+ {[%clk 0:00:15.2]} 38. Kxh3 {[%clk 0:00:02.5]}
1-0

[Event "*** Titled Tuesday 3|2 Blitz"]
[Site "Chess.com"]
[Date "2015.12.01"]
[Round "3"]
[White "Schemato"]
[Black "AndrewMcStone"]
[Result "0-1"]
[WhiteElo "2088"]
[BlackElo "2000"]
[TimeControl "180+2"]
[EndTime "11:34:15 PST"]
[Termination "AndrewMcStone won on time"]

1. c4 {[%clk 0:02:22]} 1... f5 {[%clk 0:02:58.6]} 2. g3 {[%clk 0:02:10.3]} 2...
Nf6 {[%clk 0:02:59.2]} 3. Bg2 {[%clk 0:02:08.6]} 3... e6 {[%clk 0:02:58.1]} 4.
Nf3 {[%clk 0:01:55.3]} 4... Be7 {[%clk 0:02:57.2]} 5. O-O {[%clk 0:01:46.7]}
5... O-O {[%clk 0:02:57.9]} 6. d3 {[%clk 0:01:35]} 6... Nc6 {[%clk 0:02:42.6]}
7. Nc3 {[%clk 0:00:59.5]} 7... d6 {[%clk 0:02:43.3]} 8. e4 {[%clk 0:00:59.2]}
8... fxe4 {[%clk 0:02:38.3]} 9. dxe4 {[%clk 0:00:58.7]} 9... e5 {[%clk
0:02:39.2]} 10. h3 {[%clk 0:00:58]} 10... Be6 {[%clk 0:02:23.6]} 11. b3 {[%clk
0:00:54.7]} 11... Kh8 {[%clk 0:02:23.2]} 12. Be3 {[%clk 0:00:54.9]} 12... Qd7
{[%clk 0:02:20.3]} 13. Kh2 {[%clk 0:00:54.2]} 13... h6 {[%clk 0:01:22.8]} 14.
Nh4 {[%clk 0:00:49]} 14... Kh7 {[%clk 0:01:23.4]} 15. Nd5 {[%clk 0:00:46.6]}
15... g5 {[%clk 0:01:12.4]} 16. Nf5 {[%clk 0:00:40.3]} 16... Bxf5 {[%clk
0:01:10.7]} 17. exf5 {[%clk 0:00:42.2]} 17... Qxf5 {[%clk 0:01:09.2]} 18. Nxc7
{[%clk 0:00:42.5]} 18... Rac8 {[%clk 0:00:44.1]} 19. Nd5 {[%clk 0:00:42.8]}
19... Nxd5 {[%clk 0:00:42]} 20. Qxd5 {[%clk 0:00:40.7]} 20... Kg7 {[%clk
0:00:42.3]} 21. Be4 {[%clk 0:00:40.6]} 21... Qf7 {[%clk 0:00:41.7]} 22. Qd2
{[%clk 0:00:37.1]} 22... Bf6 {[%clk 0:00:39.8]} 23. Rad1 {[%clk 0:00:36.4]}
23... Nd4 {[%clk 0:00:39.6]} 24. f4 {[%clk 0:00:33.4]} 24... gxf4 {[%clk
0:00:38.7]} 25. gxf4 {[%clk 0:00:34.2]} 25... Kh8 {[%clk 0:00:38.5]} 26. fxe5
{[%clk 0:00:27.8]} 26... Bxe5+ {[%clk 0:00:39.4]} 27. Kh1 {[%clk 0:00:26.5]}
27... Qg7 {[%clk 0:00:10.7]} 28. Bxd4 {[%clk 0:00:20.6]} 28... Rxf1+ {[%clk
0:00:08]} 29. Rxf1 {[%clk 0:00:13.6]} 29... Bxd4 {[%clk 0:00:09.4]} 30. Qf4
{[%clk 0:00:06.4]} 30... Rg8 {[%clk 0:00:06.8]} 31. Qf5 {[%clk 0:00:04.4]} 31...
Be5 {[%clk 0:00:04.2]} 32. Qf3 {[%clk 0:00:03.4]} 32... Qg3 {[%clk 0:00:04]} 0-1

[Event "*** Titled Tuesday 3|2 Blitz"]
[Site "Chess.com"]
[Date "2015.12.01"]
[Round "3"]
[White "ruifeng"]
[Black "armago"]
[Result "1-0"]
[WhiteElo "2166"]
[BlackElo "2102"]
[TimeControl "180+2"]
[EndTime "11:34:53 PST"]
[Termination "ruifeng won on time"]

1. e4 {[%clk 0:03:01.9]} 1... c5 {[%clk 0:02:59.8]} 2. Nc3 {[%clk 0:03:02.5]}
2... e6 {[%clk 0:02:59.8]} 3. g3 {[%clk 0:03:02.3]} 3... d5 {[%clk 0:03:00.1]}
4. Bg2 {[%clk 0:03:02.4]} 4... d4 {[%clk 0:03:00.6]} 5. Nce2 {[%clk 0:03:02.7]}
5... Nc6 {[%clk 0:03:02.2]} 6. d3 {[%clk 0:03:03.4]} 6... h5 {[%clk 0:03:02.5]}
7. h3 {[%clk 0:02:57]} 7... h4 {[%clk 0:03:02.9]} 8. g4 {[%clk 0:02:57.8]} 8...
e5 {[%clk 0:03:00.3]} 9. f4 {[%clk 0:02:58.2]} 9... exf4 {[%clk 0:02:59.9]} 10.
Bxf4 {[%clk 0:02:57.6]} 10... Bd6 {[%clk 0:03:00.4]} 11. Nf3 {[%clk 0:02:54]}
11... Qc7 {[%clk 0:02:55.8]} 12. Qd2 {[%clk 0:02:39.4]} 12... Nge7 {[%clk
0:02:55.5]} 13. O-O {[%clk 0:02:32]} 13... Ng6 {[%clk 0:02:55.5]} 14. Bxd6
{[%clk 0:02:31.8]} 14... Qxd6 {[%clk 0:02:57.4]} 15. Rae1 {[%clk 0:01:50.4]}
15... Nce5 {[%clk 0:02:41.6]} 16. Nxe5 {[%clk 0:01:47]} 16... Qxe5 {[%clk
0:02:38]} 17. Nf4 {[%clk 0:01:40.3]} 17... Nxf4 {[%clk 0:02:38]} 18. Rxf4 {[%clk
0:01:40.7]} 18... Be6 {[%clk 0:02:38.2]} 19. Rf5 {[%clk 0:01:36.6]} 19... Qc7
{[%clk 0:02:36.6]} 20. Rf2 {[%clk 0:01:09]} 20... O-O-O {[%clk 0:02:28.4]} 21.
b4 {[%clk 0:01:09.2]} 21... c4 {[%clk 0:02:26]} 22. dxc4 {[%clk 0:00:55.9]}
22... Qxc4 {[%clk 0:02:22]} 23. e5 {[%clk 0:00:49.4]} 23... Qxa2 {[%clk
0:02:13.4]} 24. Qd3 {[%clk 0:00:39.7]} 24... Qc4 {[%clk 0:02:12.2]} 25. Qf3
{[%clk 0:00:37.8]} 25... Qc7 {[%clk 0:02:07.7]} 26. Ra1 {[%clk 0:00:34.5]} 26...
Qb6 {[%clk 0:02:05.4]} 27. Ra5 {[%clk 0:00:32.1]} 27... Kb8 {[%clk 0:02:04.9]}
28. Qd3 {[%clk 0:00:30.9]} 28... Rc8 {[%clk 0:01:58.5]} 29. Rb5 {[%clk
0:00:30.4]} 29... Qc7 {[%clk 0:01:45.3]} 30. Qe4 {[%clk 0:00:24.6]} 30... Qc6
{[%clk 0:01:28.9]} 31. Qxc6 {[%clk 0:00:21.6]} 31... Rxc6 {[%clk 0:01:28.7]} 32.
Bxc6 {[%clk 0:00:22.5]} 32... Kc7 {[%clk 0:01:24.7]} 33. Bxb7 {[%clk 0:00:21.8]}
33... Rb8 {[%clk 0:01:24]} 34. Ba6 {[%clk 0:00:22.6]} 34... Rd8 {[%clk
0:01:23.7]} 35. Rc5+ {[%clk 0:00:23.8]} 35... Kb6 {[%clk 0:01:23.8]} 36. Bc4
{[%clk 0:00:24.6]} 36... d3 {[%clk 0:01:21.8]} 37. Bxd3 {[%clk 0:00:24.7]} 37...
Rd4 {[%clk 0:01:20.8]} 38. Rb5+ {[%clk 0:00:21.4]} 38... Kc6 {[%clk 0:01:20.5]}
39. Rb8 {[%clk 0:00:21.6]} 39... g5 {[%clk 0:01:17.1]} 40. Rf1 {[%clk
0:00:21.4]} 40... Kc7 {[%clk 0:01:17.6]} 41. Ra8 {[%clk 0:00:21.5]} 41... Kb6
{[%clk 0:01:16.6]} 42. Ra1 {[%clk 0:00:21.8]} 42... Rd7 {[%clk 0:01:17.5]} 43.
Ra6+ {[%clk 0:00:22.2]} 43... Kb7 {[%clk 0:01:17.4]} 44. R6xa7+ {[%clk
0:00:22.2]} 44... Kc6 {[%clk 0:01:18.1]} 45. Be4+ {[%clk 0:00:21.4]} 45... Kb5
{[%clk 0:01:18.9]} 46. Rxd7 {[%clk 0:00:21.3]} 46... Bxd7 {[%clk 0:01:19.3]} 47.
Rb8+ {[%clk 0:00:22.7]} 47... Kc4 {[%clk 0:01:19.8]} 48. Bd3+ {[%clk 0:00:22.9]}
48... Kd4 {[%clk 0:01:20.7]} 49. b5 {[%clk 0:00:24]} 49... Kc5 {[%clk
0:01:20.8]} 50. b6 {[%clk 0:00:24.4]} 50... Kc6 {[%clk 0:01:18]} 51. Be4+ {[%clk
0:00:24.8]} 51... Kc5 {[%clk 0:01:18]} 52. b7 {[%clk 0:00:25.9]} 52... Kb6
{[%clk 0:01:18.5]} 53. Rd8 {[%clk 0:00:26.1]} 1-0

[Event "*** Titled Tuesday 3|2 Blitz"]
[Site "Chess.com"]
[Date "2015.12.01"]
[Round "3"]
[White "lukas_111111"]
[Black "BellJackson95"]
[Result "1-0"]
[WhiteElo "2219"]
[BlackElo "2145"]
[TimeControl "180+2"]
[EndTime "11:35:03 PST"]
[Termination "lukas_111111 won by resignation"]

1. e4 {[%clk 0:03:01.9]} 1... e5 {[%clk 0:02:59.7]} 2. Nf3 {[%clk 0:03:02.9]}
2... Nc6 {[%clk 0:03:01.1]} 3. Bb5 {[%clk 0:03:03.2]} 3... f5 {[%clk 0:03:02.5]}
4. d3 {[%clk 0:02:52.7]} 4... fxe4 {[%clk 0:03:01]} 5. dxe4 {[%clk 0:02:53.3]}
5... Nf6 {[%clk 0:03:02.3]} 6. O-O {[%clk 0:02:51.6]} 6... Bc5 {[%clk
0:03:03.5]} 7. Qd3 {[%clk 0:02:51]} 7... d6 {[%clk 0:03:02.9]} 8. Qc4 {[%clk
0:02:48.5]} 8... Bd7 {[%clk 0:03:03.8]} 9. Nc3 {[%clk 0:02:49.6]} 9... Qe7
{[%clk 0:03:03.7]} 10. Nd5 {[%clk 0:02:50.6]} 10... Nxd5 {[%clk 0:03:03.1]} 11.
exd5 {[%clk 0:02:51.6]} 11... Nd4 {[%clk 0:03:04.3]} 12. Bxd7+ {[%clk 0:02:52]}
12... Qxd7 {[%clk 0:03:03.2]} 13. Nxd4 {[%clk 0:02:52.6]} 13... Bxd4 {[%clk
0:03:02.6]} 14. a4 {[%clk 0:02:53.6]} 14... a6 {[%clk 0:03:01.7]} 15. Be3 {[%clk
0:02:54.8]} 15... Bb6 {[%clk 0:02:42.8]} 16. Bxb6 {[%clk 0:02:46.2]} 16... cxb6
{[%clk 0:02:44.7]} 17. Qb4 {[%clk 0:02:45.6]} 17... Qc7 {[%clk 0:02:42.6]} 18.
Ra3 {[%clk 0:02:44.6]} 18... Qc5 {[%clk 0:02:37.1]} 19. Qg4 {[%clk 0:02:37.2]}
19... O-O {[%clk 0:02:32.7]} 20. Qe6+ {[%clk 0:02:15.9]} 20... Kh8 {[%clk
0:02:31.8]} 21. Rc3 {[%clk 0:02:10.8]} 21... Qb4 {[%clk 0:02:11]} 22. Rc7 {[%clk
0:02:10.1]} 22... Qxa4 {[%clk 0:01:58.9]} 23. Qxd6 {[%clk 0:02:03.7]} 23... Qb5
{[%clk 0:01:42.4]} 24. Qxe5 {[%clk 0:01:52.1]} 24... Rf6 {[%clk 0:01:39.4]} 25.
Rxb7 {[%clk 0:01:45.7]} 25... Raf8 {[%clk 0:01:27.7]} 26. Rb8 {[%clk 0:01:31.3]}
26... h6 {[%clk 0:01:14.7]} 27. Rxf8+ {[%clk 0:01:23.3]} 27... Rxf8 {[%clk
0:01:14.5]} 28. Rd1 {[%clk 0:01:10.3]} 28... Qc5 {[%clk 0:01:12.5]} 29. Qd4
{[%clk 0:01:07]} 29... Qd6 {[%clk 0:01:05.5]} 30. g3 {[%clk 0:01:04.5]} 30...
Rc8 {[%clk 0:01:02.8]} 31. c4 {[%clk 0:01:03]} 31... b5 {[%clk 0:01:00.1]} 32.
b3 {[%clk 0:01:00.4]} 32... Rc5 {[%clk 0:00:57.7]} 33. Re1 {[%clk 0:00:57.8]}
33... bxc4 {[%clk 0:00:49.1]} 34. bxc4 {[%clk 0:00:57.7]} 34... Rc8 {[%clk
0:00:47.2]} 35. Re6 {[%clk 0:00:57.7]} 35... Qb4 {[%clk 0:00:44.4]} 36. Qe4
{[%clk 0:00:34.6]} 36... Qa4 {[%clk 0:00:32]} 37. d6 {[%clk 0:00:32.4]} 37...
Rd8 {[%clk 0:00:27.5]} 38. c5 {[%clk 0:00:29.8]} 38... Qd1+ {[%clk 0:00:22.1]}
39. Kg2 {[%clk 0:00:30.4]} 39... a5 {[%clk 0:00:21.9]} 40. Re8+ {[%clk
0:00:30.6]} 40... Rxe8 {[%clk 0:00:21.8]} 41. Qxe8+ {[%clk 0:00:31.6]} 41... Kh7
{[%clk 0:00:23.5]} 42. Qe4+ {[%clk 0:00:24]} 42... Kg8 {[%clk 0:00:21.4]} 43.
Qe6+ {[%clk 0:00:23.4]} 43... Kh7 {[%clk 0:00:17.2]} 44. Qf5+ {[%clk 0:00:24.2]}
44... Kg8 {[%clk 0:00:16.5]} 45. d7 {[%clk 0:00:23]} 45... h5 {[%clk 0:00:08.7]}
46. c6 {[%clk 0:00:22.9]} 46... h4 {[%clk 0:00:08.1]} 47. gxh4 {[%clk
0:00:20.9]} 47... Qd6 {[%clk 0:00:09.3]} 48. Qg5 {[%clk 0:00:14.8]} 48... Qxc6+
{[%clk 0:00:08.2]} 49. f3 {[%clk 0:00:13.5]} 49... Qc2+ {[%clk 0:00:08.6]} 50.
Kh3 {[%clk 0:00:11.8]} 50... Qf2 {[%clk 0:00:07]} 51. d8=Q+ {[%clk 0:00:11.8]}
51... Kh7 {[%clk 0:00:08.9]} 52. Qd3+ {[%clk 0:00:11.7]} 52... Kg8 {[%clk
0:00:08.8]} 53. Qdd5+ {[%clk 0:00:11.8]} 53... Kf8 {[%clk 0:00:08.3]} 54. Qgf5+
{[%clk 0:00:12.3]} 1-0

[Event "*** Titled Tuesday 3|2 Blitz"]
[Site "Chess.com"]
[Date "2015.12.01"]
[Round "3"]
[White "Boryboy"]
[Black "RitvarsReimanis"]
[Result "1-0"]
[WhiteElo "2525"]
[BlackElo "2294"]
[TimeControl "180+2"]
[EndTime "11:35:36 PST"]
[Termination "Boryboy won by checkmate"]

1. e4 {[%clk 0:03:01.9]} 1... e6 {[%clk 0:02:57.2]} 2. d4 {[%clk 0:03:02.5]}
2... d5 {[%clk 0:02:57.8]} 3. Nd2 {[%clk 0:03:03.9]} 3... c6 {[%clk 0:02:58.8]}
4. Ngf3 {[%clk 0:03:01.9]} 4... f5 {[%clk 0:02:56.8]} 5. e5 {[%clk 0:02:57.3]}
5... c5 {[%clk 0:02:57.2]} 6. c3 {[%clk 0:02:54.8]} 6... Nc6 {[%clk 0:02:57.4]}
7. Bd3 {[%clk 0:02:55.5]} 7... Qb6 {[%clk 0:02:54.4]} 8. O-O {[%clk 0:02:54.3]}
8... cxd4 {[%clk 0:02:55]} 9. cxd4 {[%clk 0:02:55.5]} 9... Nh6 {[%clk
0:02:50.5]} 10. Nb3 {[%clk 0:02:55.8]} 10... Nf7 {[%clk 0:02:49.5]} 11. Bd2
{[%clk 0:02:54]} 11... Bd7 {[%clk 0:02:43.7]} 12. Rc1 {[%clk 0:02:54.9]} 12...
Be7 {[%clk 0:02:40]} 13. Nc5 {[%clk 0:02:53.2]} 13... Bc8 {[%clk 0:02:41.1]} 14.
b4 {[%clk 0:02:51.8]} 14... O-O {[%clk 0:02:39.1]} 15. b5 {[%clk 0:02:52.3]}
15... Nb8 {[%clk 0:02:20]} 16. a4 {[%clk 0:02:53.1]} 16... a5 {[%clk 0:02:21.3]}
17. Qb3 {[%clk 0:02:39]} 17... Nd7 {[%clk 0:02:14.2]} 18. Bxf5 {[%clk
0:02:14.7]} 18... Bxc5 {[%clk 0:01:47.1]} 19. Bxh7+ {[%clk 0:02:05.8]} 19...
Kxh7 {[%clk 0:01:45.2]} 20. dxc5 {[%clk 0:02:07.1]} 20... Nxc5 {[%clk
0:01:42.4]} 21. Qa3 {[%clk 0:01:44]} 21... Nd7 {[%clk 0:01:42]} 22. Be3 {[%clk
0:01:37.1]} 22... Qd8 {[%clk 0:01:40.5]} 23. Bd4 {[%clk 0:01:38.2]} 23... Nh6
{[%clk 0:01:33.2]} 24. Qd3+ {[%clk 0:01:32.3]} 24... Kg8 {[%clk 0:01:33.3]} 25.
Be3 {[%clk 0:01:33]} 25... Nf5 {[%clk 0:01:31.4]} 26. Bd2 {[%clk 0:01:33]} 26...
Qe8 {[%clk 0:01:25.4]} 27. Rfe1 {[%clk 0:01:30.8]} 27... b6 {[%clk 0:01:15.4]}
28. Rc7 {[%clk 0:01:30.7]} 28... Nc5 {[%clk 0:01:15.2]} 29. Qa3 {[%clk
0:01:25.9]} 29... Qd8 {[%clk 0:01:10.9]} 30. Rc6 {[%clk 0:01:15.3]} 30... Bb7
{[%clk 0:01:09]} 31. Bg5 {[%clk 0:01:15.7]} 31... Qd7 {[%clk 0:01:04.6]} 32.
Rxb6 {[%clk 0:01:15.9]} 32... Rac8 {[%clk 0:00:58.1]} 33. Bd2 {[%clk 0:01:09.9]}
33... d4 {[%clk 0:00:51.5]} 34. Ng5 {[%clk 0:01:07.9]} 34... d3 {[%clk
0:00:48.4]} 35. f3 {[%clk 0:00:42.9]} 35... Qd4+ {[%clk 0:00:43.5]} 36. Kh1
{[%clk 0:00:44.3]} 36... Ne4 {[%clk 0:00:28]} 37. fxe4 {[%clk 0:00:24.9]} 37...
Qxb6 {[%clk 0:00:28.7]} 38. exf5 {[%clk 0:00:24.2]} 38... Qf2 {[%clk 0:00:29.5]}
39. Rg1 {[%clk 0:00:21.7]} 39... Qxd2 {[%clk 0:00:27.5]} 40. Qe7 {[%clk
0:00:21.6]} 40... Bd5 {[%clk 0:00:23.4]} 41. f6 {[%clk 0:00:22.1]} 41... Qxg5
{[%clk 0:00:23.4]} 42. f7+ {[%clk 0:00:23]} 42... Rxf7 {[%clk 0:00:24.7]} 43.
Qxg5 {[%clk 0:00:24.7]} 43... Rf2 {[%clk 0:00:21.8]} 44. h4 {[%clk 0:00:16.6]}
44... Rcc2 {[%clk 0:00:18.4]} 45. b6 {[%clk 0:00:17.8]} 45... d2 {[%clk
0:00:13.7]} 46. Qh5 {[%clk 0:00:12.7]} 46... Rxg2 {[%clk 0:00:09.5]} 47. Qe8+
{[%clk 0:00:12.6]} 47... Kh7 {[%clk 0:00:10.7]} 48. Qh5+ {[%clk 0:00:14.2]}
48... Kg8 {[%clk 0:00:12]} 49. Rxg2 {[%clk 0:00:13.7]} 49... Bxg2+ {[%clk
0:00:10.8]} 50. Kh2 {[%clk 0:00:13.5]} 50... Bc6 {[%clk 0:00:11.2]} 51. Qd1
{[%clk 0:00:14]} 51... Bf3 {[%clk 0:00:06.6]} 52. Qxc2 {[%clk 0:00:13.6]} 52...
d1=Q {[%clk 0:00:06.7]} 53. Qxd1 {[%clk 0:00:15.3]} 53... Bxd1 {[%clk
0:00:07.8]} 54. b7 {[%clk 0:00:17]} 54... Bxa4 {[%clk 0:00:09.1]} 55. b8=Q+
{[%clk 0:00:18.4]} 55... Kh7 {[%clk 0:00:10.5]} 56. Qa7 {[%clk 0:00:20.3]} 56...
Bc2 {[%clk 0:00:11.5]} 57. Qxa5 {[%clk 0:00:22.2]} 57... Bf5 {[%clk 0:00:13.2]}
58. Qd2 {[%clk 0:00:24.1]} 58... Kg6 {[%clk 0:00:14.5]} 59. Kg3 {[%clk 0:00:26]}
59... Kf7 {[%clk 0:00:16.4]} 60. Qg5 {[%clk 0:00:27.8]} 60... Kg8 {[%clk
0:00:17.4]} 61. Kf4 {[%clk 0:00:29.7]} 61... Kf7 {[%clk 0:00:19.3]} 62. h5
{[%clk 0:00:31.6]} 62... g6 {[%clk 0:00:21]} 63. h6 {[%clk 0:00:32.8]} 63... Kg8
{[%clk 0:00:22]} 64. Qf6 {[%clk 0:00:34.5]} 64... Kh7 {[%clk 0:00:23.9]} 65.
Qg7# {[%clk 0:00:36.4]} 1-0